bitfinex/quotes_SOLUSD_20240902
["timestamp","ask_amount","ask_price","bid_price","bid_amount"]
[1725248327785,7.6753,130.29,130.24,24.0768]
[1725248327987,20.0,130.28,130.24,24.0768]
[1725248328398,27.6758,130.28,130.24,7.6779]
[1725248329478,20.0,130.28,130.25,9.21273949]
[1725248329879,20.0,130.28,130.27,7.6763]
[1725248330088,20.0,130.28,130.26,7.6768]
[1725248330285,20.0,130.29,130.27,1.53511683]
[1725248330597,13.875,130.32,130.27,9.21121683]
[1725248330904,20.0,130.31,130.27,54.21121683]
[1725248331199,20.0,130.31,130.27,52.6761]
[1725248331697,20.0,130.31,130.28,7.6756]
[1725248332473,20.0,130.32,130.29,7.6751]
[1725248334781,27.6734,130.32,130.28,7.6755]
[1725248334996,20.0,130.32,130.28,7.6755]
[1725248335302,20.0,130.32,130.29,52.6748]
[1725248336099,7.673,130.33,130.29,52.6748]
[1725248336304,20.0,130.32,130.29,52.6748]
[1725248337296,20.0,130.32,130.3,7.6745]
[1725248337509,20.0,130.32,130.29,26.8627]
[1725248338402,7.673,130.33,130.29,26.8627]
[1725248338894,20.0,130.32,130.29,26.8627]
[1725248339094,27.6736,130.32,130.28,7.6756]
[1725248339793,27.6736,130.32,130.29,7.6751]
[1725248339995,20.0,130.32,130.29,7.6751]
[1725248340192,20.0,130.33,130.3,7.6744]
[1725248340409,20.0,130.33,130.3,9.2091831]
[1725248340893,20.0,130.33,130.3,19.186]
[1725248341199,27.6727,130.34,130.3,26.8601]
[1725248341381,7.6729,130.33,130.3,19.186]
[1725248341587,32.71737755,130.32,130.26,16.2911]
[1725248341784,7.6748,130.3,130.26,16.2911]
[1725248341998,7.6748,130.3,130.26,23.9678]
[1725248342510,7.6741,130.31,130.26,23.9678]
[1725248342684,20.0,130.3,130.26,23.9678]
[1725248342884,27.6747,130.3,130.26,7.6767]
[1725248346707,7.6773,130.26,130.21,26.8783]
[1725248347006,7.6775,130.25,130.21,26.8783]
[1725248347389,12.71737755,130.27,130.2,22.4735]
[1725248347614,20.0,130.26,130.19,7.6805]
[1725248347951,12.71737755,130.25,130.19,7.6805]
[1725248348085,20.0,130.24,130.19,7.6805]
[1725248348286,7.6787,130.23,130.19,7.6805]
[1725248349714,20.0,130.24,130.21,7.6793]
[1725248350101,20.0,130.25,130.21,7.6793]
[1725248351888,27.6776,130.25,130.21,7.6793]
[1725248352913,7.6781,130.24,130.2,71.8804]
[1725248353114,7.6793,130.22,130.18,7.6812]
[1725248353337,7.6791,130.23,130.18,7.6812]
[1725248353624,20.0,130.22,130.18,7.6812]
[1725248353795,20.0,130.22,130.17,41.7011]
[1725248353796,20.0,130.22,130.17,42.7695]
[1725248354219,12.71737755,130.23,130.18,7.6816]
[1725248354427,20.0,130.22,130.18,7.6816]
[1725248354718,20.0,130.22,130.17,35.0873]
[1725248355803,7.68,130.21,130.17,42.7691]
[1725248360817,7.68,130.21,130.18,45.0]
[1725248361803,7.6805,130.2,130.17,19.2045]
[1725248362118,7.6805,130.2,130.16,7.6826]
[1725248362430,20.12549,130.19,130.14,19.2087]
[1725248362717,7.6822,130.17,130.14,19.2087]
[1725248362895,7.6818,130.18,130.14,26.8926]
[1725248363091,20.0,130.17,130.14,26.8926]
[1725248363499,20.0,130.17,130.11,19.2131]
[1725248363704,0.12549,130.19,130.14,7.6839]
[1725248363705,7.6817,130.18,130.14,7.6839]
[1725248363924,20.0,130.17,130.14,7.6839]
[1725248364218,7.6817,130.18,130.14,7.6839]
[1725248364420,20.0,130.17,130.14,7.6839]
[1725248366303,25.0489805,130.24,130.15,49.2738786]
[1725248366504,23.1969,130.24,130.19,7.6809]
[1725248366801,23.1969,130.24,130.19,26.8834]
[1725248367004,23.1969,130.24,130.2,7.6803]
[1725248367207,7.6787,130.23,130.19,26.8834]
[1725248367499,7.6795,130.22,130.19,19.2025]
[1725248367702,7.6799,130.21,130.16,19.2059]
[1725248367906,7.6805,130.2,130.16,26.8885]
[1725248370716,20.0,130.19,130.16,26.8885]
[1725248371110,27.6811,130.19,130.16,19.2059]
[1725248371512,20.0,130.19,130.16,19.2059]
[1725248371707,20.0,130.22,130.17,45.0]
[1725248371913,27.92998,130.23,130.19,7.681]
[1725248372327,7.6793,130.22,130.18,26.8849]
[1725248372624,27.6788,130.23,130.19,52.6809]
[1725248373418,7.6794,130.22,130.18,26.8846]
[1725248382316,20.0,130.21,130.18,26.8846]
[1725248383435,20.0,130.21,130.19,7.6807]
[1725248383621,15.3664,130.27,130.2,64.2011]
[1725248383622,20.0,130.24,130.2,64.2011]
[1725248383812,7.6777,130.25,130.21,7.6795]
[1725248384015,20.0,130.24,130.21,7.6795]
[1725248384217,20.0,130.24,130.23,7.6787]
[1725248384427,20.0,130.24,130.22,26.877]
[1725248384632,20.0,130.25,130.22,26.877]
[1725248384838,20.0,130.25,130.23,7.6786]
[1725248385045,20.0,130.26,130.23,7.6786]
[1725248386339,27.6769,130.26,130.22,26.8771]
[1725248386547,27.6769,130.26,130.22,19.1979]
[1725248387445,27.6769,130.26,130.22,26.8771]
[1725248390226,27.6769,130.26,130.23,45.0]
[1725248392251,20.0,130.26,130.23,52.6786]
[1725248392423,20.0,130.26,130.24,7.678]
[1725248392629,20.0,130.27,130.24,7.678]
[1725248392854,20.0,130.27,130.25,7.6772]
[1725248393025,20.0,130.28,130.25,7.6772]
[1725248393231,27.6756,130.29,130.25,7.6772]
[1725248393445,7.6758,130.28,130.24,26.8722]
[1725248393747,20.0,130.27,130.25,45.0]
[1725248393950,20.0,130.27,130.25,54.21264804]
[1725248394324,20.0,130.28,130.25,54.21264804]
[1725248394527,20.0,130.28,130.26,7.6769]
[1725248394753,67.10437607,130.33,130.26,20.72685794]
[1725248394754,47.92137607,130.33,130.26,20.72685794]
[1725248394925,7.6729,130.33,130.27,46.53515794]
[1725248395130,38.40177607,130.35,130.28,64.189]
[1725248395347,7.6727,130.34,130.29,9.20949229]
[1725248395539,7.6727,130.34,130.3,45.0]
[1725248396047,7.6727,130.34,130.3,52.6744]
[1725248396258,33.3279805,130.36,130.31,7.6738]
[1725248396948,31.79507607,130.35,130.27,34.3333]
[1725248397152,31.79507607,130.33,130.27,15.1427]
[1725248397329,7.6745,130.31,130.27,15.1427]
[1725248397532,20.0,130.3,130.26,7.6768]
[1725248398331,27.6747,130.3,130.25,7.6774]
[1725248400227,20.0,130.3,130.21,35.2887]
[1725248400482,7.6768,130.27,130.22,7.6788]
[1725248400759,0.25098,130.29,130.23,9.21374203]
[1725248401065,0.25098,130.29,130.23,7.6782]
[1725248401436,7.6764,130.27,130.22,7.6792]
[1725248401644,27.6769,130.26,130.21,35.2887]
[1725248401841,7.6764,130.27,130.22,7.6791]
[1725248402053,20.0,130.26,130.23,45.0]
[1725248402551,20.0,130.26,130.23,52.6785]
[1725248403156,20.0,130.27,130.23,52.6785]
[1725248403742,20.0,130.27,130.23,45.0]
[1725248403943,7.6765,130.27,130.22,52.6789]
[1725248404157,27.677,130.26,130.22,52.6792]
[1725248404659,27.677,130.26,130.21,35.2887]
[1725248404660,20.0,130.26,130.21,16.0896]
[1725248404864,7.6783,130.24,130.18,41.8983]
[1725248405064,51.79507607,130.27,130.18,34.2172]
[1725248405065,27.6788,130.23,130.18,34.2172]
[1725248405265,27.6788,130.23,130.18,41.8987]
[1725248406182,27.6788,130.23,130.18,19.2035]
[1725248406183,7.6794,130.22,130.18,19.2035]
[1725248406983,7.6794,130.22,130.18,26.8851]
[1725248407484,27.6788,130.23,130.18,26.8851]
[1725248407691,27.6788,130.23,130.19,45.0]
[1725248408289,7.6793,130.22,130.19,45.0]
[1725248408591,20.0,130.21,130.19,45.0]
[1725248409282,31.79507607,130.25,130.19,45.0]
[1725248409283,7.678,130.25,130.2,9.21645865]
[1725248409486,20.0,130.24,130.21,45.0]
[1725248409670,27.6781,130.24,130.19,7.6809]
[1725248409984,7.679,130.23,130.18,26.8851]
[1725248410188,7.679,130.23,130.19,45.0]
[1725248411385,20.0,130.22,130.19,45.0]
[1725248412375,20.0,130.22,130.2,1.53605729]
[1725248412686,20.0,130.24,130.2,9.21605729]
[1725248412887,20.0,130.24,130.21,45.0]
[1725248413067,27.6781,130.24,130.21,45.0]
[1725248413267,7.6781,130.24,130.21,45.0]
[1725248413468,20.0,130.23,130.21,52.6796]
[1725248413991,20.0,130.24,130.21,52.6796]
[1725248414872,20.0,130.24,130.21,45.0]
[1725248418094,20.0,130.24,130.21,52.6798]
[1725248418395,20.0,130.24,130.21,45.0]
[1725248418968,27.6781,130.24,130.21,45.0]
[1725248423698,20.0,130.24,130.22,19.198]
[1725248423900,7.6775,130.25,130.22,19.198]
[1725248424075,20.0,130.24,130.22,19.198]
[1725248424794,27.6782,130.24,130.21,45.0]
[1725248429698,20.0,130.24,130.16,38.4132]
[1725248429907,20.0,130.24,130.13,7.684]
[1725248429908,31.79507607,130.21,130.13,7.684]
[1725248430206,31.79507607,130.21,130.15,7.6834]
[1725248430207,7.6812,130.19,130.15,7.6834]
[1725248430387,20.0,130.18,130.14,7.6839]
[1725248430588,27.6818,130.18,130.13,19.2111]
[1725248430792,27.6818,130.18,130.12,16.1559]
[1725248430793,7.6831,130.16,130.12,16.1559]
[1725248430985,7.6841,130.14,130.1,19.2155]
[1725248431298,12.7353708,130.17,130.1,26.9017]
[1725248431299,7.6834,130.15,130.1,26.9017]
[1725248431501,20.0,130.14,130.1,26.9017]
[1725248432204,20.0,130.15,130.11,52.6857]
[1725248432500,20.0,130.15,130.11,45.0]
[1725248432708,20.0,130.2,130.11,45.0]
[1725248432911,27.6806,130.2,130.15,7.6833]
[1725248433080,27.6806,130.2,130.14,19.2086]
[1725248433280,7.6797,130.22,130.16,7.6822]
[1725248433590,7.6805,130.2,130.16,26.888]
[1725248434295,7.6799,130.21,130.16,26.888]
[1725248434482,7.6793,130.22,130.17,52.6821]
[1725248434884,27.6799,130.21,130.17,45.0]
[1725248435404,20.0,130.21,130.17,52.6822]
[1725248435594,20.0,130.22,130.17,52.6822]
[1725248436090,27.6797,130.22,130.17,52.6822]
[1725248436408,20.0,130.22,130.17,45.0]
[1725248436577,20.0,130.22,130.18,7.6814]
[1725248436780,7.6801,130.21,130.17,45.0]
[1725248437079,20.0,130.2,130.17,45.0]
[1725248437479,27.6806,130.2,130.16,19.2058]
[1725248438285,7.6811,130.19,130.15,7.6833]
[1725248438624,20.0,130.18,130.14,7.6839]
[1725248439100,27.6813,130.19,130.15,52.6833]
[1725248439693,20.0,130.19,130.15,52.6833]
[1725248440601,20.0,130.19,130.16,1.53641477]
[1725248440911,7.6805,130.2,130.16,7.6827]
[1725248441205,20.0,130.21,130.15,64.208]
[1725248441206,20.0,130.21,130.17,46.5363918]
[1725248441400,27.6798,130.22,130.17,54.2185918]
[1725248441904,27.6798,130.22,130.17,52.6822]
[1725248442503,27.6798,130.22,130.18,9.21768469]
[1725248442808,20.0,130.22,130.19,19.2014]
[1725248442988,27.6785,130.24,130.2,7.6804]
[1725248443186,7.6788,130.23,130.19,26.8824]
[1725248443405,20.0,130.22,130.19,26.8824]
[1725248444702,20.0,130.22,130.16,15.3396]
[1725248444703,20.0,130.22,130.16,34.5462]
[1725248445009,20.0,130.22,130.15,7.6833]
[1725248445010,7.6806,130.2,130.15,7.6833]
[1725248445310,7.6806,130.2,130.16,7.6827]
[1725248445606,0.25098,130.21,130.15,19.2082]
[1725248445806,20.25098,130.21,130.15,19.2082]
[1725248446393,7.6827,130.17,130.13,23.024]
[1725248446611,7.6827,130.17,130.12,26.8974]
[1725248446812,27.6829,130.16,130.12,26.8974]
[1725248447009,7.6834,130.15,130.11,7.6857]
[1725248447309,20.0,130.14,130.11,7.6857]
[1725248447515,20.0,130.14,130.1,15.6957]
[1725248447516,51.0561218,130.17,130.1,15.6957]
[1725248447683,20.12549,130.16,130.1,15.6957]
[1725248447883,31.9758118,130.15,130.06,41.4819]
[1725248448093,31.9758118,130.15,130.08,7.6875]
[1725248448296,20.12549,130.14,130.07,7.688]
[1725248448499,0.12549,130.13,130.07,7.688]
[1725248448708,7.6852,130.12,130.07,7.688]
[1725248448899,7.6852,130.12,130.06,41.4819]
[1725248448900,27.6843,130.14,130.09,7.6866]
[1725248455405,7.6847,130.13,130.09,7.6866]
[1725248455601,20.0,130.12,130.09,7.6866]
[1725248456000,20.0,130.12,130.08,26.9052]
[1725248456216,20.0,130.12,130.09,45.0]
[1725248458014,20.0,130.12,130.08,26.9052]
[1725248458619,20.0,130.12,130.09,45.0]
[1725248459691,20.0,130.12,130.09,52.6868]
[1725248461690,31.8503218,130.18,130.1,20.75256398]
[1725248462015,20.0,130.17,130.11,46.53680048]
[1725248462322,20.0,130.17,130.12,64.2128]
[1725248462498,27.6826,130.17,130.13,7.6844]
[1725248463309,27.6826,130.17,130.13,9.22107749]
[1725248463497,27.6826,130.17,130.13,7.6844]
[1725248464104,20.0,130.17,130.14,7.6839]
[1725248465427,20.0,130.17,130.15,7.6833]
[1725248465605,27.6817,130.18,130.14,26.8935]
[1725248465996,20.0,130.18,130.15,7.6834]
[1725248467094,20.0,130.18,130.14,19.2096]
[1725248467299,20.0,130.19,130.17,7.6821]
[1725248467519,27.6803,130.21,130.16,26.8889]
[1725248468612,7.6805,130.2,130.16,26.8889]
[1725248468804,20.0,130.19,130.16,26.8889]
[1725248476618,20.0,130.19,130.17,45.0]
[1725248477125,20.0,130.19,130.17,52.6818]
[1725248477300,20.0,130.2,130.17,52.6818]
[1725248477999,20.0,130.2,130.17,7.6818]
[1725248478305,20.0,130.2,130.16,26.889]
[1725248478306,27.6805,130.2,130.16,26.889]
[1725248479219,7.6812,130.19,130.16,19.2063]
[1725248480430,20.0,130.18,130.16,19.2063]
[1725248482726,20.0,130.18,130.12,21.2308]
[1725248482727,20.0,130.18,130.13,19.2101]
[1725248482933,7.6826,130.17,130.13,26.8943]
[1725248483719,7.6826,130.17,130.14,7.684]
[1725248484720,20.0,130.16,130.14,7.684]
[1725248485547,20.0,130.16,130.13,26.8945]
[1725248485832,27.6829,130.16,130.12,7.685]
[1725248486004,7.6846,130.13,130.1,19.2146]
[1725248486205,20.0,130.12,130.07,26.9072]
[1725248486411,0.25098,130.15,130.08,7.6875]
[1725248487539,7.6853,130.12,130.08,7.6875]
[1725248488337,31.8503218,130.12,130.05,7.6888]
[1725248488536,7.6869,130.1,130.04,26.9139]
[1725248488711,20.0,130.09,130.04,26.9139]
[1725248488913,7.6893,130.06,130.0,26.9215]
[1725248489210,20.0,130.05,130.01,7.6916]
[1725248489815,27.6887,130.06,130.01,7.6916]
[1725248490013,20.0,130.06,130.03,19.2261]
[1725248490213,16.3226,130.1,130.04,7.6893]
[1725248490420,20.12549,130.09,130.04,7.6893]
[1725248491519,20.0,130.09,130.05,46.53779755]
[1725248491744,20.0,130.09,130.05,52.6892]
[1725248492235,20.0,130.09,130.05,45.0]
[1725248492541,27.6871,130.09,130.04,45.0]
[1725248492711,0.12549,130.08,130.04,45.0]
[1725248493144,0.12549,130.08,130.03,19.2261]
[1725248493145,7.81319,130.08,130.03,19.2261]
[1725248493436,27.81359,130.07,130.03,19.2261]
[1725248494537,20.0,130.07,130.03,19.2261]
[1725248494747,27.81299,130.08,130.04,45.0]
[1725248496519,20.0,130.08,130.04,45.0]
[1725248496728,20.0,130.09,130.04,45.0]
[1725248498419,20.0,130.09,130.05,7.689]
[1725248499319,20.0,130.09,130.06,7.6886]
[1725248499543,20.0,130.11,130.07,52.6877]
[1725248499845,27.6858,130.11,130.07,52.6877]
[1725248500245,20.0,130.11,130.07,52.6877]
[1725248500443,27.6857,130.12,130.07,52.6877]
[1725248500620,7.6858,130.11,130.07,52.6877]
[1725248500947,20.0,130.1,130.07,52.6877]
[1725248502136,20.0,130.11,130.07,52.6877]
[1725248503542,27.6859,130.11,130.07,52.6877]
[1725248505224,27.6859,130.11,130.07,45.0]
[1725248505560,7.6868,130.1,130.05,43.3903]
[1725248505851,7.6877,130.08,130.02,34.724]
[1725248506029,7.6877,130.08,130.04,7.6898]
[1725248506228,7.6877,130.08,130.03,7.6904]
[1725248506624,20.0,130.09,130.02,34.724]
[1725248506625,7.6882,130.07,130.02,42.415]
[1725248506828,27.6888,130.06,130.02,42.415]
[1725248507229,20.0,130.06,130.02,42.415]
[1725248509930,7.6882,130.07,130.02,42.415]
[1725248510458,20.0,130.06,130.03,7.6904]
[1725248510646,27.81309,130.08,130.03,7.6904]
[1725248510832,20.0,130.08,130.06,7.6881]
[1725248511148,20.0,130.08,130.05,19.2227]
[1725248511149,27.687,130.09,130.05,19.2227]
[1725248511344,27.687,130.09,130.05,26.9119]
[1725248512123,20.0,130.09,130.05,26.9119]
[1725248512326,7.6862,130.11,130.06,54.22605956]
[1725248512327,20.0,130.1,130.06,54.22605956]
[1725248512950,20.0,130.1,130.06,52.6884]
[1725248513134,20.0,130.1,130.06,54.22588445]
[1725248513540,20.0,130.1,130.06,52.6884]
[1725248515329,20.0,130.1,130.07,7.6881]
[1725248516249,20.0,130.11,130.07,7.6881]
[1725248516455,20.0,130.11,130.08,52.6874]
[1725248516756,27.6858,130.11,130.07,7.688]
[1725248516970,39.5356218,130.12,130.07,7.688]
[1725248518449,20.0,130.11,130.07,7.688]
[1725248519143,20.0,130.11,130.08,45.0]
[1725248519339,20.0,130.11,130.08,52.6875]
[1725248520354,20.0,130.11,130.09,7.6868]
[1725248520569,20.12549,130.13,130.11,7.6857]
[1725248520767,20.12549,130.13,130.07,15.616]
[1725248521057,7.6865,130.1,130.06,19.2209]
[1725248521247,20.0,130.09,130.06,19.2209]
[1725248522546,20.0,130.1,130.07,45.0]
[1725248522742,27.6864,130.1,130.06,26.9095]
[1725248524066,7.6886,130.07,130.03,34.8415]
[1725248524462,20.0,130.06,130.03,19.2255]
[1725248524672,20.0,130.06,130.02,7.691]
[1725248524961,20.0,130.07,130.03,1.53792796]
[1725248525469,7.6876,130.08,130.03,52.6903]
[1725248525644,20.0,130.07,130.03,52.6903]
[1725248525848,20.0,130.07,130.04,7.6898]
[1725248526046,20.0,130.07,130.05,9.22700406]
[1725248526268,20.0,130.08,130.05,7.6892]
[1725248526647,7.93808,130.09,130.05,7.6892]
[1725248527846,20.0,130.08,130.05,7.6892]
[1725248531654,20.0,130.08,130.02,19.227]
[1725248531655,7.6894,130.05,130.02,19.227]
[1725248531961,7.6894,130.05,130.0,15.8019]
[1725248532365,27.69,130.04,130.0,15.8019]
[1725248532554,7.6907,130.03,129.99,26.9245]
[1725248532973,20.0,130.02,129.99,26.9245]
[1725248533671,20.0,130.02,129.99,19.2317]
[1725248534258,7.692,130.01,129.97,15.4864]
[1725248535359,7.692,130.01,129.97,23.18]
[1725248535579,7.692,130.01,129.97,7.6936]
[1725248535771,27.6923,130.0,129.96,7.6946]
[1725248536072,7.6923,130.0,129.96,7.6946]
[1725248536668,20.0,130.02,129.99,7.6925]
[1725248538868,20.0,130.03,129.99,7.6925]
[1725248539067,27.6907,130.03,129.99,7.6925]
[1725248539378,20.0,130.03,129.99,7.6925]
[1725248540084,27.6906,130.03,129.99,7.6925]
[1725248540588,7.6917,130.01,129.97,26.9284]
[1725248540878,7.6931,129.99,129.94,26.934]
[1725248542475,39.5454218,129.96,129.91,26.9407]
[1725248542680,20.0,129.98,129.92,1.53919047]
[1725248542854,20.0,129.98,129.94,7.6957]
[1725248543053,27.6935,129.98,129.94,7.6957]
[1725248543776,27.6935,129.98,129.93,26.9366]
[1725248543971,20.0,129.98,129.93,19.2403]
[1725248544159,27.81849,129.99,129.94,45.0]
[1725248545077,27.81849,129.99,129.94,52.6954]
[1725248545483,20.0,129.99,129.94,45.0]
[1725248545666,7.6909,130.03,129.95,1.53861846]
[1725248545858,7.6909,130.03,129.94,60.8303]
[1725248546182,7.6909,130.03,129.98,7.6933]
[1725248546485,7.6912,130.02,129.97,26.9282]
[1725248546870,7.6906,130.03,129.99,7.6927]
[1725248547288,7.6912,130.02,129.98,7.6934]
[1725248547463,39.5415218,130.02,129.97,19.2343]
[1725248548264,31.8503218,130.02,129.98,7.6932]
[1725248548485,20.0,130.01,129.98,7.6932]
[1725248548660,20.0,130.02,129.98,7.6932]
[1725248549188,27.6912,130.02,129.97,26.9282]
[1725248549383,59.5415218,130.02,129.97,26.9282]
[1725248549587,7.81729,130.01,129.97,26.9282]
[1725248549881,20.12549,130.0,129.97,19.2343]
[1725248550074,20.12549,130.0,129.94,60.8303]
[1725248550075,7.6932,129.99,129.94,42.765]
[1725248550271,7.6935,129.98,129.94,26.9347]
[1725248550466,39.5454218,129.96,129.91,26.9408]
[1725248550665,20.0,129.95,129.91,26.9408]
[1725248550889,31.8503218,129.92,129.86,15.8781]
[1725248551092,39.5479218,129.92,129.86,23.5781]
[1725248551266,32.1013018,129.94,129.87,23.27275197]
[1725248551473,7.94688,129.94,129.89,7.6988]
[1725248551678,20.0,129.93,129.89,7.6988]
[1725248552171,39.5442218,129.98,129.92,7.697]
[1725248552366,20.25098,129.97,129.92,7.697]
[1725248552570,27.94518,129.97,129.92,7.697]
[1725248552986,20.0,129.97,129.93,7.6963]
[1725248553376,20.0,129.97,129.91,19.2429]
[1725248553974,7.6948,129.96,129.91,26.94]
[1725248554291,20.0,129.95,129.91,26.94]
[1725248555318,20.0,129.95,129.92,7.697]
[1725248555506,20.12549,129.96,129.92,7.697]
[1725248555709,20.0,129.96,129.92,7.697]
[1725248556427,20.0,129.96,129.92,9.23626654]
[1725248556723,20.0,129.96,129.92,7.697]
[1725248557619,27.6947,129.96,129.92,7.697]
[1725248559002,20.0,129.96,129.92,7.697]
[1725248560108,20.0,129.96,129.92,9.2362453]
[1725248560305,20.0,129.96,129.92,7.697]
[1725248561094,20.0,129.96,129.93,7.6964]
[1725248561299,20.0,129.96,129.94,45.0]
[1725248561495,20.0,129.98,129.94,52.6956]
[1725248561997,27.6936,129.98,129.94,52.6956]
[1725248562315,7.6943,129.97,129.93,26.9367]
[1725248562494,20.12549,129.96,129.93,19.2405]
[1725248562695,20.12549,129.96,129.9,19.2445]
[1725248562899,0.12549,129.95,129.9,19.2445]
[1725248563135,7.6959,129.94,129.9,19.2445]
[1725248563309,7.6991,129.89,129.85,6.2913]
[1725248563509,7.6977,129.91,129.86,7.7001]
[1725248563828,20.0,129.9,129.87,7.6996]
[1725248564423,27.6976,129.91,129.86,7.7004]
[1725248564612,6.30179,129.95,129.87,1.53983158]
[1725248564920,16.6531,130.0,129.92,7.6969]
[1725248564921,20.0,129.94,129.92,7.6969]
[1725248565117,20.0,129.95,129.92,7.6969]
[1725248565300,20.0,129.95,129.89,19.246]
[1725248565503,20.0,129.95,129.9,46.53945713]
[1725248565733,7.6947,129.96,129.91,7.6971]
[1725248565914,20.0,129.95,129.91,7.6971]
[1725248566115,7.6961,129.94,129.9,45.0]
[1725248566330,20.0,129.95,129.89,19.246]
[1725248566634,7.6965,129.93,129.89,19.246]
[1725248566929,0.12549,129.92,129.89,26.9448]
[1725248568034,20.12549,129.92,129.89,26.9448]
[1725248568224,20.0,129.92,129.9,7.6979]
[1725248568714,20.0,129.94,129.9,7.6979]
[1725248569117,20.0,129.95,129.9,7.6979]
[1725248570017,7.6959,129.94,129.89,26.9446]
[1725248570223,20.0,129.93,129.9,45.0]
[1725248570419,20.0,129.93,129.9,52.6982]
[1725248570632,20.0,129.93,129.92,7.697]
[1725248571223,20.0,129.93,129.91,26.9408]
[1725248571426,20.0,129.95,129.91,26.9408]
[1725248572135,20.0,129.95,129.93,7.6963]
[1725248572432,20.0,129.96,129.92,45.0]
[1725248572833,20.0,129.96,129.92,52.6968]
[1725248573527,20.0,129.96,129.93,7.6962]
[1725248574915,20.0,129.96,129.94,7.6958]
[1725248575132,20.12549,129.97,129.94,7.6958]
[1725248575538,20.0,129.97,129.94,7.6958]
[1725248575710,27.6941,129.97,129.92,52.6968]
[1725248576918,7.6947,129.96,129.92,52.6968]
[1725248577127,20.0,129.95,129.92,52.6968]
[1725248578220,20.0,129.95,129.91,19.2433]
[1725248578221,27.6952,129.95,129.91,26.9409]
[1725248579027,20.0,129.95,129.92,7.697]
[1725248579415,27.6952,129.95,129.91,26.9408]
[1725248579735,20.0,129.95,129.92,52.6968]
[1725248580453,20.0,129.96,129.92,52.6968]
[1725248584823,20.0,129.96,129.93,7.6964]
[1725248585229,20.0,129.96,129.93,20.77984431]
[1725248585425,38.3408218,130.02,129.95,19.238]
[1725248585626,7.6923,130.01,129.96,54.23318547]
[1725248585828,38.3408218,130.02,129.96,54.23318547]
[1725248585829,7.6925,130.0,129.96,54.23318547]
[1725248586027,7.6919,130.01,129.97,7.694]
[1725248587525,14.1818,130.02,129.97,7.694]
[1725248587738,20.0,130.01,129.96,45.0]
[1725248588043,7.6927,130.0,129.96,45.0]
[1725248588251,20.0,129.99,129.96,7.6946]
[1725248588923,20.0,129.99,129.97,7.694]
[1725248589245,20.0,130.0,129.97,7.694]
[1725248590347,20.0,130.01,129.97,7.694]
[1725248590648,20.0,130.01,129.99,7.6925]
[1725248590845,7.6907,130.03,129.99,7.6925]
[1725248590846,20.0,130.03,130.0,7.6922]
[1725248591340,27.6909,130.03,129.99,26.9245]
[1725248592626,20.0,130.03,130.0,7.692]
[1725248592826,20.0,130.03,129.99,26.9243]
[1725248592827,27.6906,130.03,129.99,26.9243]
[1725248593028,7.6911,130.02,129.99,19.2318]